[Event "Early-Titled-Tuesday-Blitz-October-24-2023"]
[Site "Chess.com"]
[Date "2023.10.24"]
[Round "1"]
[White "Cambek64"]
[Black "MatthewG-p4p"]
[Result "0-1"]
[WhiteElo "2446"]
[BlackElo "2811"]
[TimeControl "180+1"]
[EndTime "8:06:00 PDT"]
[Termination "MatthewG-p4p won by resignation"]

1. e4 {[%clk 0:02:50.1]} 1... c5 {[%clk 0:02:59.2]} 2. Nc3 {[%clk 0:02:48.9]}
2... g6 {[%clk 0:02:57.1]} 3. b3 {[%clk 0:02:47.9]} 3... Bg7 {[%clk 0:02:57.1]}
4. Bb2 {[%clk 0:02:48.5]} 4... Nc6 {[%clk 0:02:57.2]} 5. f4 {[%clk 0:02:47.6]}
5... e6 {[%clk 0:02:44.3]} 6. Nf3 {[%clk 0:02:41.9]} 6... Nge7 {[%clk
0:02:35.9]} 7. e5 {[%clk 0:02:38.6]} 7... d6 {[%clk 0:02:35.5]} 8. exd6 {[%clk
0:02:38.1]} 8... Nf5 {[%clk 0:02:32.5]} 9. Bb5 {[%clk 0:02:37]} 9... Qxd6 {[%clk
0:02:12.7]} 10. Ne4 {[%clk 0:02:28]} 10... Qxf4 {[%clk 0:02:06.6]} 11. Bxg7
{[%clk 0:02:28.5]} 11... Qxe4+ {[%clk 0:02:05.6]} 12. Qe2 {[%clk 0:02:29.2]}
12... Qxe2+ {[%clk 0:02:05.9]} 13. Kxe2 {[%clk 0:02:29.7]} 13... Nxg7 {[%clk
0:02:06.8]} 14. Bxc6+ {[%clk 0:02:29.3]} 14... bxc6 {[%clk 0:02:07.7]} 15. g4
{[%clk 0:02:21.9]} 15... h6 {[%clk 0:02:00.8]} 16. Ne5 {[%clk 0:02:20.5]} 16...
O-O {[%clk 0:01:42.7]} 17. Rhf1 {[%clk 0:02:16.8]} 17... Bb7 {[%clk 0:01:36.9]}
18. Ke3 {[%clk 0:02:12.1]} 18... Rad8 {[%clk 0:01:36.2]} 19. Nd3 {[%clk
0:02:09.2]} 19... c4 {[%clk 0:01:18.5]} 20. bxc4 {[%clk 0:02:08]} 20... Ba6
{[%clk 0:01:18.9]} 21. Ne5 {[%clk 0:02:07]} 21... c5 {[%clk 0:01:19.3]} 22. Rab1
{[%clk 0:02:05.4]} 22... g5 {[%clk 0:01:10.7]} 23. d3 {[%clk 0:01:59.9]} 23...
f6 {[%clk 0:01:10.8]} 24. Nf3 {[%clk 0:01:55.3]} 24... Rd7 {[%clk 0:01:06.6]}
25. Rb3 {[%clk 0:01:54.4]} 25... Bb7 {[%clk 0:01:06.3]} 26. Nd2 {[%clk
0:01:52.7]} 26... f5 {[%clk 0:01:06.7]} 27. h3 {[%clk 0:01:51.9]} 27... fxg4
{[%clk 0:01:05]} 28. Rxf8+ {[%clk 0:01:52.3]} 28... Kxf8 {[%clk 0:01:05.9]} 29.
hxg4 {[%clk 0:01:52.4]} 29... h5 {[%clk 0:01:06.5]} 30. Ne4 {[%clk 0:01:51.2]}
30... Bxe4 {[%clk 0:01:06]} 31. Kxe4 {[%clk 0:01:51.8]} 31... hxg4 {[%clk
0:01:02.4]} 32. Ke5 {[%clk 0:01:51.6]} 32... Kf7 {[%clk 0:01:01.9]} 33. Rb1
{[%clk 0:01:48.3]} 33... g3 {[%clk 0:01:01]} 34. Ke4 {[%clk 0:01:42.5]} 34...
Nf5 {[%clk 0:00:57]} 35. Kf3 {[%clk 0:01:42.8]} 35... Kf6 {[%clk 0:00:57.5]} 36.
Kg2 {[%clk 0:01:41.4]} 36... Rh7 {[%clk 0:00:57.8]} 37. Kf3 {[%clk 0:01:38.2]}
37... Rh2 {[%clk 0:00:56.4]} 38. c3 {[%clk 0:01:37.6]} 38... Rf2+ {[%clk
0:00:56.2]} 39. Kg4 {[%clk 0:01:36.8]} 39... g2 {[%clk 0:00:53]} 40. Rg1 {[%clk
0:01:37.1]} 40... Ne3+ {[%clk 0:00:51.7]} 41. Kg3 {[%clk 0:01:32.7]} 41... Rf1
{[%clk 0:00:52.6]} 42. Kh2 {[%clk 0:01:32.7]} 42... Rxg1 {[%clk 0:00:51.4]} 43.
Kxg1 {[%clk 0:01:33.1]} 43... Ke5 {[%clk 0:00:52.2]} 44. a3 {[%clk 0:01:32.4]}
44... Kf4 {[%clk 0:00:52]} 45. a4 {[%clk 0:01:32.6]} 45... Kf3 {[%clk
0:00:50.8]} 46. a5 {[%clk 0:01:33]} 46... a6 {[%clk 0:00:50.8]} 47. d4 {[%clk
0:01:31.9]} 47... cxd4 {[%clk 0:00:51.7]} 48. cxd4 {[%clk 0:01:32.2]} 48... Nxc4
{[%clk 0:00:52]} 49. d5 {[%clk 0:01:29.5]} 49... exd5 {[%clk 0:00:52.9]} 50. Kh2
{[%clk 0:01:29.4]} 50... d4 {[%clk 0:00:53.5]} 51. Kh3 {[%clk 0:01:27.4]} 51...
d3 {[%clk 0:00:54.4]} 52. Kh2 {[%clk 0:01:27.4]} 52... d2 {[%clk 0:00:55.1]} 53.
Kh3 {[%clk 0:01:27.6]} 53... d1=Q {[%clk 0:00:55.4]} 0-1

[Event "Early-Titled-Tuesday-Blitz-October-24-2023"]
[Site "Chess.com"]
[Date "2023.10.24"]
[Round "1"]
[White "Witty_Alien"]
[Black "IMRosen"]
[Result "0-1"]
[WhiteElo "2213"]
[BlackElo "2568"]
[TimeControl "180+1"]
[EndTime "8:06:01 PDT"]
[Termination "IMRosen won by resignation"]

1. e4 {[%clk 0:02:45.8]} 1... c5 {[%clk 0:02:59.6]} 2. Nf3 {[%clk 0:02:43.6]}
2... e6 {[%clk 0:02:59.1]} 3. d4 {[%clk 0:02:43.1]} 3... cxd4 {[%clk 0:03:00]}
4. c3 {[%clk 0:02:42.9]} 4... dxc3 {[%clk 0:02:59]} 5. Bc4 {[%clk 0:02:41.3]}
5... Nc6 {[%clk 0:02:58.3]} 6. O-O {[%clk 0:02:38.2]} 6... Bb4 {[%clk 0:02:46]}
7. Nxc3 {[%clk 0:02:34]} 7... Nge7 {[%clk 0:02:42]} 8. Nd5 {[%clk 0:02:20.6]}
8... exd5 {[%clk 0:02:37]} 9. exd5 {[%clk 0:02:21]} 9... O-O {[%clk 0:02:31.4]}
10. a3 {[%clk 0:02:10.2]} 10... Bd6 {[%clk 0:02:21.8]} 11. Bg5 {[%clk
0:02:04.3]} 11... Na5 {[%clk 0:01:39.7]} 12. Bd3 {[%clk 0:01:52.1]} 12... h6
{[%clk 0:01:39.8]} 13. b4 {[%clk 0:01:30.9]} 13... hxg5 {[%clk 0:01:16.3]} 14.
Nxg5 {[%clk 0:01:30.7]} 14... g6 {[%clk 0:01:16.9]} 15. Qf3 {[%clk 0:01:12.5]}
15... Kg7 {[%clk 0:01:10.7]} 16. bxa5 {[%clk 0:01:00.6]} 16... Be5 {[%clk
0:01:03.1]} 17. d6 {[%clk 0:00:56.1]} 17... Nc6 {[%clk 0:00:53.2]} 18. Bc4
{[%clk 0:00:48]} 18... Qxg5 {[%clk 0:00:48.6]} 19. Rae1 {[%clk 0:00:29.6]} 19...
Qf4 {[%clk 0:00:45.1]} 20. Qh3 {[%clk 0:00:16.7]} 20... Qxc4 {[%clk 0:00:39.6]}
0-1

[Event "Early-Titled-Tuesday-Blitz-October-24-2023"]
[Site "Chess.com"]
[Date "2023.10.24"]
[Round "1"]
[White "vladgoncharov"]
[Black "Fraler15"]
[Result "1-0"]
[WhiteElo "2584"]
[BlackElo "2252"]
[TimeControl "180+1"]
[EndTime "8:06:05 PDT"]
[Termination "vladgoncharov won by resignation"]

1. d4 {[%clk 0:03:00.9]} 1... Nf6 {[%clk 0:02:59.4]} 2. c4 {[%clk 0:02:58.2]}
2... e6 {[%clk 0:02:58.5]} 3. Nc3 {[%clk 0:02:57.2]} 3... Bb4 {[%clk 0:02:58.6]}
4. e3 {[%clk 0:02:57.1]} 4... b6 {[%clk 0:02:57.3]} 5. Bd3 {[%clk 0:02:54.3]}
5... Bb7 {[%clk 0:02:53.9]} 6. f3 {[%clk 0:02:54.2]} 6... d5 {[%clk 0:02:31.8]}
7. Qa4+ {[%clk 0:02:36.8]} 7... Nc6 {[%clk 0:02:31.6]} 8. cxd5 {[%clk
0:02:36.5]} 8... Nxd5 {[%clk 0:02:24.8]} 9. Bd2 {[%clk 0:02:28.5]} 9... O-O
{[%clk 0:02:18.8]} 10. Nge2 {[%clk 0:02:21]} 10... Qh4+ {[%clk 0:02:02.6]} 11.
Ng3 {[%clk 0:02:09.1]} 11... Nxc3 {[%clk 0:01:30]} 12. bxc3 {[%clk 0:02:07.5]}
12... Bd6 {[%clk 0:01:30.1]} 13. Kf2 {[%clk 0:01:59.3]} 13... e5 {[%clk
0:01:17.1]} 14. Be4 {[%clk 0:01:43]} 14... Na5 {[%clk 0:01:04.1]} 15. Bxb7
{[%clk 0:01:41.2]} 15... Nxb7 {[%clk 0:01:04]} 16. e4 {[%clk 0:01:19.7]} 16...
exd4 {[%clk 0:00:46.6]} 17. cxd4 {[%clk 0:01:18.8]} 17... c5 {[%clk 0:00:46.2]}
18. Qb5 {[%clk 0:01:01.3]} 18... cxd4 {[%clk 0:00:41.9]} 19. Bg5 {[%clk
0:01:00.6]} 19... a6 {[%clk 0:00:30]} 20. Qd5 {[%clk 0:01:00.2]} 20... Bxg3+
{[%clk 0:00:11.3]} 21. hxg3 {[%clk 0:00:59.7]} 21... Qxh1 {[%clk 0:00:12.2]} 22.
Rxh1 {[%clk 0:00:58.3]} 22... Nc5 {[%clk 0:00:13.1]} 23. Be7 {[%clk 0:00:49.3]}
23... Rfc8 {[%clk 0:00:11.5]} 24. Bxc5 {[%clk 0:00:49.3]} 24... bxc5 {[%clk
0:00:12.4]} 25. Rc1 {[%clk 0:00:47.2]} 1-0

[Event "Early-Titled-Tuesday-Blitz-October-24-2023"]
[Site "Chess.com"]
[Date "2023.10.24"]
[Round "1"]
[White "deribas12345"]
[Black "AleksandrAleksikov"]
[Result "0-1"]
[WhiteElo "2558"]
[BlackElo "2251"]
[TimeControl "180+1"]
[EndTime "8:06:05 PDT"]
[Termination "AleksandrAleksikov won by checkmate"]

1. d4 {[%clk 0:02:59.7]} 1... Nf6 {[%clk 0:02:59.2]} 2. c4 {[%clk 0:02:59.6]}
2... g6 {[%clk 0:02:59.2]} 3. Nc3 {[%clk 0:02:59.7]} 3... Bg7 {[%clk 0:02:59.6]}
4. e4 {[%clk 0:03:00]} 4... d6 {[%clk 0:02:59.4]} 5. Nge2 {[%clk 0:03:00.1]}
5... O-O {[%clk 0:02:59]} 6. Ng3 {[%clk 0:03:00]} 6... e5 {[%clk 0:02:55.5]} 7.
d5 {[%clk 0:02:59.9]} 7... c5 {[%clk 0:02:54.1]} 8. Be2 {[%clk 0:02:58.9]} 8...
Na6 {[%clk 0:02:47.2]} 9. O-O {[%clk 0:02:58.5]} 9... Nc7 {[%clk 0:02:44.9]} 10.
Be3 {[%clk 0:02:57.9]} 10... a6 {[%clk 0:02:42.8]} 11. a4 {[%clk 0:02:57.2]}
11... b6 {[%clk 0:02:41.6]} 12. a5 {[%clk 0:02:47.7]} 12... b5 {[%clk 0:02:36]}
13. cxb5 {[%clk 0:02:46.5]} 13... axb5 {[%clk 0:02:34.7]} 14. f3 {[%clk
0:02:05]} 14... Ba6 {[%clk 0:02:01.9]} 15. b4 {[%clk 0:02:00.7]} 15... cxb4
{[%clk 0:01:53.8]} 16. Na2 {[%clk 0:02:00]} 16... Bb7 {[%clk 0:01:52.8]} 17.
Nxb4 {[%clk 0:01:59.3]} 17... Qd7 {[%clk 0:01:43.3]} 18. Qb3 {[%clk 0:01:55.3]}
18... Na6 {[%clk 0:01:37.1]} 19. Rfc1 {[%clk 0:01:47.1]} 19... Nc5 {[%clk
0:01:25.3]} 20. Bxc5 {[%clk 0:01:43.4]} 20... dxc5 {[%clk 0:01:25.1]} 21. Rxc5
{[%clk 0:01:44.1]} 21... Qd6 {[%clk 0:01:24.8]} 22. Rc2 {[%clk 0:01:33.9]} 22...
Rxa5 {[%clk 0:01:20.4]} 23. Rxa5 {[%clk 0:01:19.8]} 23... Qb6+ {[%clk 0:01:20]}
24. Kf1 {[%clk 0:01:07.2]} 24... Qxa5 {[%clk 0:01:19.9]} 25. Nc6 {[%clk
0:01:07.9]} 25... Qa1+ {[%clk 0:01:10.9]} 26. Kf2 {[%clk 0:01:08]} 26... Ra8
{[%clk 0:00:58.5]} 27. Qxb5 {[%clk 0:00:43.6]} 27... Bxc6 {[%clk 0:00:53.1]} 28.
dxc6 {[%clk 0:00:44.5]} 28... Qd4+ {[%clk 0:00:50.4]} 29. Kf1 {[%clk 0:00:33.1]}
29... Ra1+ {[%clk 0:00:48]} 30. Bd1 {[%clk 0:00:33.4]} 30... Qxd1+ {[%clk
0:00:43.8]} 31. Kf2 {[%clk 0:00:33.7]} 31... Qe1# {[%clk 0:00:42.8]} 0-1

[Event "Early-Titled-Tuesday-Blitz-October-24-2023"]
[Site "Chess.com"]
[Date "2023.10.24"]
[Round "1"]
[White "miraitrunks"]
[Black "M1711"]
[Result "0-1"]
[WhiteElo "2135"]
[BlackElo "2548"]
[TimeControl "180+1"]
[EndTime "8:06:10 PDT"]
[Termination "M1711 won by resignation"]

1. e4 {[%clk 0:02:59.7]} 1... c6 {[%clk 0:02:59.5]} 2. Nf3 {[%clk 0:02:58.8]}
2... d5 {[%clk 0:02:59.9]} 3. exd5 {[%clk 0:02:59.7]} 3... cxd5 {[%clk
0:03:00.8]} 4. Ne5 {[%clk 0:03:00.6]} 4... a6 {[%clk 0:02:59.6]} 5. d4 {[%clk
0:02:58]} 5... Nf6 {[%clk 0:02:58.3]} 6. Bd3 {[%clk 0:02:58]} 6... Nc6 {[%clk
0:02:57]} 7. O-O {[%clk 0:02:57.4]} 7... e6 {[%clk 0:02:46.5]} 8. c3 {[%clk
0:02:55.3]} 8... Bd6 {[%clk 0:02:45.2]} 9. Re1 {[%clk 0:02:54.9]} 9... O-O
{[%clk 0:02:44.2]} 10. Bf4 {[%clk 0:02:54.5]} 10... Qc7 {[%clk 0:02:42.2]} 11.
Qe2 {[%clk 0:02:53.5]} 11... Bd7 {[%clk 0:02:30.5]} 12. Nd2 {[%clk 0:02:46.7]}
12... b5 {[%clk 0:02:29]} 13. Ndf3 {[%clk 0:02:43.9]} 13... b4 {[%clk
0:02:14.5]} 14. Rac1 {[%clk 0:02:41.2]} 14... bxc3 {[%clk 0:02:00.5]} 15. bxc3
{[%clk 0:02:31.3]} 15... Na5 {[%clk 0:01:56.4]} 16. c4 {[%clk 0:02:28.3]} 16...
dxc4 {[%clk 0:01:53.4]} 17. Bxc4 {[%clk 0:02:26.1]} 17... Nxc4 {[%clk
0:01:44.1]} 18. Rxc4 {[%clk 0:02:10.9]} 18... Qb7 {[%clk 0:01:44.1]} 19. Nxd7
{[%clk 0:02:02.6]} 19... Qxd7 {[%clk 0:01:43.6]} 20. Bxd6 {[%clk 0:01:57.1]}
20... Qxd6 {[%clk 0:01:43.9]} 21. Ne5 {[%clk 0:01:57.1]} 21... Qd5 {[%clk
0:01:33.3]} 22. Rec1 {[%clk 0:01:51.1]} 22... Rab8 {[%clk 0:01:30.7]} 23. h3
{[%clk 0:01:50.3]} 23... h6 {[%clk 0:01:25.3]} 24. R1c3 {[%clk 0:01:18.4]} 24...
Ne4 {[%clk 0:01:17.3]} 25. Re3 {[%clk 0:01:04.8]} 25... Nd6 {[%clk 0:01:14.5]}
26. Rc5 {[%clk 0:01:04.5]} 26... Qxd4 {[%clk 0:01:09.4]} 27. Rc6 {[%clk
0:00:53.1]} 27... Nf5 {[%clk 0:00:57.6]} 28. Re4 {[%clk 0:00:52.7]} 28... Qa1+
{[%clk 0:00:51.2]} 29. Kh2 {[%clk 0:00:52.3]} 29... Nd4 {[%clk 0:00:49.3]} 30.
Rxd4 {[%clk 0:00:36.8]} 30... Qxd4 {[%clk 0:00:49.1]} 31. Rxa6 {[%clk
0:00:37.7]} 31... Rb2 {[%clk 0:00:47.6]} 0-1

[Event "Early-Titled-Tuesday-Blitz-October-24-2023"]
[Site "Chess.com"]
[Date "2023.10.24"]
[Round "1"]
[White "Kleyton_Lima"]
[Black "DevikBronstein"]
[Result "0-1"]
[WhiteElo "2498"]
[BlackElo "2920"]
[TimeControl "180+1"]
[EndTime "8:06:16 PDT"]
[Termination "DevikBronstein won by resignation"]

1. e4 {[%clk 0:02:44]} 1... g6 {[%clk 0:03:00.9]} 2. d4 {[%clk 0:02:33.4]} 2...
Bg7 {[%clk 0:03:00.7]} 3. Nc3 {[%clk 0:02:32]} 3... d6 {[%clk 0:02:58.3]} 4. f4
{[%clk 0:02:28.7]} 4... Nf6 {[%clk 0:02:58.1]} 5. Nf3 {[%clk 0:02:21.7]} 5...
O-O {[%clk 0:02:58.2]} 6. Bd3 {[%clk 0:02:09]} 6... Nc6 {[%clk 0:02:57.5]} 7. e5
{[%clk 0:02:08.3]} 7... dxe5 {[%clk 0:02:55.1]} 8. fxe5 {[%clk 0:02:03.5]} 8...
Nh5 {[%clk 0:02:55.1]} 9. Be3 {[%clk 0:02:00.5]} 9... f6 {[%clk 0:02:53.8]} 10.
exf6 {[%clk 0:01:43.2]} 10... exf6 {[%clk 0:02:54.7]} 11. O-O {[%clk 0:01:42.4]}
11... Bg4 {[%clk 0:02:46.8]} 12. Bc4+ {[%clk 0:01:27.2]} 12... Kh8 {[%clk
0:02:46.3]} 13. Qd2 {[%clk 0:01:14.3]} 13... Bxf3 {[%clk 0:02:43.3]} 14. Rxf3
{[%clk 0:01:14]} 14... f5 {[%clk 0:02:44]} 15. Rd1 {[%clk 0:01:11.1]} 15... f4
{[%clk 0:02:40.3]} 16. Bf2 {[%clk 0:01:11.1]} 16... Qd7 {[%clk 0:02:21.3]} 17.
Ne4 {[%clk 0:01:06]} 17... Rae8 {[%clk 0:02:20.8]} 18. Nc5 {[%clk 0:01:02.8]}
18... Qc8 {[%clk 0:02:14.4]} 19. Ne6 {[%clk 0:00:55]} 19... Rf5 {[%clk
0:02:02.5]} 20. Nxg7 {[%clk 0:00:50.3]} 20... Kxg7 {[%clk 0:01:56.7]} 21. d5
{[%clk 0:00:39.5]} 21... Ne5 {[%clk 0:01:56.6]} 22. Bd4 {[%clk 0:00:39.4]} 22...
c5 {[%clk 0:01:45.1]} 23. Bxe5+ {[%clk 0:00:27.5]} 23... Rfxe5 {[%clk
0:01:42.6]} 24. d6 {[%clk 0:00:27.9]} 24... Qd7 {[%clk 0:01:40]} 25. Rff1 {[%clk
0:00:24.8]} 25... b5 {[%clk 0:01:35.2]} 26. Bxb5 {[%clk 0:00:17.2]} 26... Qxb5
{[%clk 0:01:36.1]} 27. d7 {[%clk 0:00:17.5]} 27... Rd8 {[%clk 0:01:36.1]} 28.
Qc3 {[%clk 0:00:17.9]} 28... c4 {[%clk 0:01:28.9]} 29. Rfe1 {[%clk 0:00:16.9]}
29... Qc5+ {[%clk 0:01:25]} 30. Kh1 {[%clk 0:00:16.8]} 30... Kf6 {[%clk
0:01:23.8]} 31. b4 {[%clk 0:00:15.7]} 31... cxb3 {[%clk 0:01:20.3]} 32. Qb2
{[%clk 0:00:13.1]} 32... bxc2 {[%clk 0:01:16.7]} 33. Rc1 {[%clk 0:00:11.2]}
33... Rxd7 {[%clk 0:01:14]} 34. Rxc2 {[%clk 0:00:11.5]} 34... Qd4 {[%clk
0:01:14.3]} 35. Rc6+ {[%clk 0:00:11]} 35... Kg7 {[%clk 0:01:12.1]} 0-1

[Event "Early-Titled-Tuesday-Blitz-October-24-2023"]
[Site "Chess.com"]
[Date "2023.10.24"]
[Round "1"]
[White "lamomiajunior"]
[Black "wild3000"]
[Result "1-0"]
[WhiteElo "2661"]
[BlackElo "2349"]
[TimeControl "180+1"]
[EndTime "8:06:16 PDT"]
[Termination "lamomiajunior won by resignation"]

1. d4 {[%clk 0:02:58.8]} 1... d5 {[%clk 0:02:56]} 2. c4 {[%clk 0:02:59.2]} 2...
e6 {[%clk 0:02:54.2]} 3. Nc3 {[%clk 0:02:59.6]} 3... Nf6 {[%clk 0:02:54.3]} 4.
cxd5 {[%clk 0:02:58.9]} 4... exd5 {[%clk 0:02:47.9]} 5. Bg5 {[%clk 0:02:58.9]}
5... c6 {[%clk 0:02:47.6]} 6. e3 {[%clk 0:02:57.9]} 6... Be7 {[%clk 0:02:47.3]}
7. Bd3 {[%clk 0:02:57.4]} 7... Nbd7 {[%clk 0:02:46.2]} 8. Nf3 {[%clk 0:02:56.6]}
8... h6 {[%clk 0:02:45.9]} 9. Bf4 {[%clk 0:02:53.7]} 9... O-O {[%clk 0:02:39.8]}
10. h3 {[%clk 0:02:53.7]} 10... b6 {[%clk 0:02:33.8]} 11. O-O {[%clk 0:02:53.3]}
11... Bb7 {[%clk 0:02:33.9]} 12. Ne5 {[%clk 0:02:52.3]} 12... Re8 {[%clk
0:02:26]} 13. Qc2 {[%clk 0:02:52.2]} 13... Nxe5 {[%clk 0:02:22.2]} 14. dxe5
{[%clk 0:02:42.9]} 14... Nd7 {[%clk 0:02:20.6]} 15. Bh2 {[%clk 0:02:41.1]} 15...
Nc5 {[%clk 0:02:15.4]} 16. f4 {[%clk 0:02:21.2]} 16... Nxd3 {[%clk 0:02:06.1]}
17. Qxd3 {[%clk 0:02:22.1]} 17... Bf8 {[%clk 0:01:52.6]} 18. Rad1 {[%clk
0:02:18.4]} 18... a5 {[%clk 0:01:52.2]} 19. Rfe1 {[%clk 0:02:16.7]} 19... a4
{[%clk 0:01:51.1]} 20. a3 {[%clk 0:02:13.1]} 20... Ba6 {[%clk 0:01:36.5]} 21.
Qc2 {[%clk 0:02:13]} 21... Bc4 {[%clk 0:01:36.6]} 22. Nxa4 {[%clk 0:02:08.6]}
22... b5 {[%clk 0:01:19]} 23. Nc3 {[%clk 0:02:08.5]} 23... Qb6 {[%clk
0:01:17.6]} 24. b3 {[%clk 0:01:56.8]} 24... Rxa3 {[%clk 0:01:03]} 25. bxc4
{[%clk 0:01:55.5]} 25... dxc4 {[%clk 0:01:03.9]} 26. Ne4 {[%clk 0:01:25]} 26...
Rxe3 {[%clk 0:00:57]} 27. Qf2 {[%clk 0:01:23.8]} 27... Rxe1+ {[%clk 0:00:56.4]}
28. Rxe1 {[%clk 0:01:24.7]} 28... Qa5 {[%clk 0:00:40.5]} 29. f5 {[%clk
0:01:21.2]} 29... c3 {[%clk 0:00:33.4]} 30. Qg3 {[%clk 0:01:20.3]} 30... b4
{[%clk 0:00:27.8]} 31. Nf6+ {[%clk 0:01:19.1]} 31... Kh8 {[%clk 0:00:26.2]} 32.
Nxe8 {[%clk 0:01:19.6]} 32... b3 {[%clk 0:00:19.7]} 33. f6 {[%clk 0:01:15.5]}
33... g6 {[%clk 0:00:18.1]} 34. e6 {[%clk 0:01:16.2]} 34... b2 {[%clk 0:00:16]}
35. e7 {[%clk 0:01:16.2]} 35... Bxe7 {[%clk 0:00:12.4]} 36. fxe7 {[%clk
0:01:16.6]} 36... c2 {[%clk 0:00:12.8]} 37. Qe5+ {[%clk 0:01:16.1]} 37... Qxe5
{[%clk 0:00:10.9]} 38. Bxe5+ {[%clk 0:01:17]} 1-0

[Event "Early-Titled-Tuesday-Blitz-October-24-2023"]
[Site "Chess.com"]
[Date "2023.10.24"]
[Round "1"]
[White "C_K_G"]
[Black "Tejas_Rama"]
[Result "0-1"]
[WhiteElo "1859"]
[BlackElo "2526"]
[TimeControl "180+1"]
[EndTime "8:06:16 PDT"]
[Termination "Tejas_Rama won on time"]

1. e4 {[%clk 0:02:43.8]} 1... c5 {[%clk 0:02:59.3]} 2. Nf3 {[%clk 0:02:43.1]}
2... d6 {[%clk 0:02:59.9]} 3. d4 {[%clk 0:02:42.7]} 3... cxd4 {[%clk 0:03:00.8]}
4. Nxd4 {[%clk 0:02:42.5]} 4... Nf6 {[%clk 0:03:01.4]} 5. Nc3 {[%clk 0:02:42.7]}
5... Nc6 {[%clk 0:03:02.1]} 6. Be2 {[%clk 0:02:42.6]} 6... g6 {[%clk 0:03:00.5]}
7. Be3 {[%clk 0:02:41.1]} 7... Bg7 {[%clk 0:02:58.9]} 8. O-O {[%clk 0:02:40.3]}
8... O-O {[%clk 0:02:59.5]} 9. f4 {[%clk 0:02:40.3]} 9... Bd7 {[%clk 0:02:56.5]}
10. Bf3 {[%clk 0:02:39.9]} 10... Rc8 {[%clk 0:02:53.3]} 11. Nxc6 {[%clk
0:02:26.5]} 11... Bxc6 {[%clk 0:02:51.2]} 12. e5 {[%clk 0:02:25.6]} 12... dxe5
{[%clk 0:02:43.1]} 13. fxe5 {[%clk 0:02:12.8]} 13... Qxd1 {[%clk 0:02:42.6]} 14.
Raxd1 {[%clk 0:02:11.4]} 14... Bxf3 {[%clk 0:01:48.6]} 15. exf6 {[%clk
0:02:05.9]} 15... Bxd1 {[%clk 0:01:49.2]} 16. fxg7 {[%clk 0:02:05.9]} 16... Rfd8
{[%clk 0:01:48]} 17. Rxd1 {[%clk 0:01:52.2]} 17... Rxd1+ {[%clk 0:01:47.3]} 18.
Nxd1 {[%clk 0:01:52.5]} 18... Rxc2 {[%clk 0:01:47.5]} 19. Kf1 {[%clk 0:01:46.1]}
19... a6 {[%clk 0:01:43.4]} 20. a3 {[%clk 0:01:42.5]} 20... Kxg7 {[%clk
0:01:42.9]} 21. h4 {[%clk 0:01:28.8]} 21... e5 {[%clk 0:01:41.8]} 22. g3 {[%clk
0:01:26.5]} 22... f5 {[%clk 0:01:41.3]} 23. Ke1 {[%clk 0:01:25.3]} 23... Kf6
{[%clk 0:01:41]} 24. Bd2 {[%clk 0:01:24.7]} 24... Ke6 {[%clk 0:01:24.1]} 25. Ke2
{[%clk 0:01:20.5]} 25... f4 {[%clk 0:01:19.7]} 26. gxf4 {[%clk 0:01:19.5]} 26...
exf4 {[%clk 0:01:20.6]} 27. Kd3 {[%clk 0:01:19.1]} 27... Rc8 {[%clk 0:01:12.1]}
28. Bxf4 {[%clk 0:01:19]} 28... Rd8+ {[%clk 0:01:05.1]} 0-1

[Event "Early-Titled-Tuesday-Blitz-October-24-2023"]
[Site "Chess.com"]
[Date "2023.10.24"]
[Round "1"]
[White "Levanzovsky"]
[Black "AvitalBor"]
[Result "1-0"]
[WhiteElo "2484"]
[BlackElo "2839"]
[TimeControl "180+1"]
[EndTime "8:06:17 PDT"]
[Termination "Levanzovsky won by resignation"]

1. e4 {[%clk 0:03:00.9]} 1... e6 {[%clk 0:02:58.9]} 2. d4 {[%clk 0:03:00.7]}
2... d5 {[%clk 0:02:59.2]} 3. Nc3 {[%clk 0:03:01.3]} 3... Bb4 {[%clk 0:02:56.4]}
4. e5 {[%clk 0:03:01.1]} 4... c5 {[%clk 0:02:51.9]} 5. a3 {[%clk 0:03:01.3]}
5... Bxc3+ {[%clk 0:02:51.7]} 6. bxc3 {[%clk 0:03:02.2]} 6... Ne7 {[%clk
0:02:50.4]} 7. a4 {[%clk 0:03:00.1]} 7... O-O {[%clk 0:02:40.6]} 8. Bd3 {[%clk
0:02:58.3]} 8... Qa5 {[%clk 0:02:35.9]} 9. Bd2 {[%clk 0:02:56.3]} 9... c4 {[%clk
0:02:36.4]} 10. Be2 {[%clk 0:02:55.5]} 10... Bd7 {[%clk 0:02:32.2]} 11. Qc1
{[%clk 0:02:46.1]} 11... Re8 {[%clk 0:01:59.3]} 12. Nf3 {[%clk 0:02:32.2]} 12...
Bxa4 {[%clk 0:01:56.7]} 13. g4 {[%clk 0:02:31.2]} 13... Nbc6 {[%clk 0:01:52.7]}
14. h4 {[%clk 0:02:30.1]} 14... b5 {[%clk 0:01:48.6]} 15. h5 {[%clk 0:02:29.5]}
15... b4 {[%clk 0:01:05.6]} 16. cxb4 {[%clk 0:02:05.5]} 16... Nxb4 {[%clk
0:01:05.5]} 17. c3 {[%clk 0:02:04.8]} 17... Nd3+ {[%clk 0:00:59.6]} 18. Bxd3
{[%clk 0:02:04.9]} 18... cxd3 {[%clk 0:01:00.5]} 19. Qa3 {[%clk 0:02:04.7]}
19... Rab8 {[%clk 0:00:31.1]} 20. O-O {[%clk 0:01:57.9]} 20... Qc7 {[%clk
0:00:31.1]} 21. Qxa4 {[%clk 0:01:57.3]} 21... Nc6 {[%clk 0:00:31.3]} 22. h6
{[%clk 0:01:55.2]} 22... gxh6 {[%clk 0:00:29.5]} 23. Bxh6 {[%clk 0:01:51.5]}
23... Ne7 {[%clk 0:00:22.1]} 24. Rfc1 {[%clk 0:01:28.3]} 24... Ng6 {[%clk
0:00:15.1]} 25. Qd1 {[%clk 0:01:28.1]} 25... Qc4 {[%clk 0:00:14.6]} 26. Qd2
{[%clk 0:01:24.4]} 26... Rb7 {[%clk 0:00:14.3]} 27. Qg5 {[%clk 0:01:23.5]} 27...
f6 {[%clk 0:00:10.2]} 28. exf6 {[%clk 0:01:23.7]} 28... d2 {[%clk 0:00:06.9]}
29. Qxd2 {[%clk 0:01:18.2]} 29... e5 {[%clk 0:00:06.4]} 30. Qg5 {[%clk
0:01:10.6]} 30... Qe2 {[%clk 0:00:05.4]} 31. Nxe5 {[%clk 0:01:03.2]} 31... Rb2
{[%clk 0:00:04.1]} 32. f7+ {[%clk 0:01:02.7]} 1-0